[Event "*** Titled Tuesday Blitz"]
[Site "Chess.com"]
[Date "2021.02.16"]
[Round "8"]
[White "SilviusTiberius"]
[Black "Alexander_Moskalenko"]
[Result "0-1"]
[WhiteElo "2585"]
[BlackElo "2768"]
[TimeControl "180+1"]
[EndTime "11:30:40 PST"]
[Termination "Alexander_Moskalenko won on time"]

1. e4 {[%clk 0:03:00.9]} 1... c5 {[%clk 0:02:58.9]} 2. Nf3 {[%clk 0:03:01.2]}
2... e6 {[%clk 0:02:53.8]} 3. d4 {[%clk 0:03:01.2]} 3... cxd4 {[%clk 0:02:54.7]}
4. Nxd4 {[%clk 0:03:01.7]} 4... Nc6 {[%clk 0:02:55.6]} 5. Nc3 {[%clk 0:03:01]}
5... Qc7 {[%clk 0:02:54.5]} 6. Be3 {[%clk 0:03:01]} 6... a6 {[%clk 0:02:52.6]}
7. Qf3 {[%clk 0:03:01.3]} 7... h5 {[%clk 0:02:44.8]} 8. O-O-O {[%clk 0:02:53.1]}
8... Nf6 {[%clk 0:02:36]} 9. Nxc6 {[%clk 0:02:40.9]} 9... bxc6 {[%clk
0:02:34.5]} 10. Qg3 {[%clk 0:02:38.2]} 10... Qxg3 {[%clk 0:02:21.6]} 11. hxg3
{[%clk 0:02:37.7]} 11... Ng4 {[%clk 0:02:22.5]} 12. Bb6 {[%clk 0:02:17.4]} 12...
Rb8 {[%clk 0:02:19.4]} 13. Ba7 {[%clk 0:02:09.4]} 13... Ra8 {[%clk 0:02:19.6]}
14. Bb6 {[%clk 0:02:09.3]} 14... Rb8 {[%clk 0:02:20.1]} 15. Ba7 {[%clk
0:02:09.2]} 15... Rb7 {[%clk 0:02:20.8]} 16. Be2 {[%clk 0:01:52.3]} 16... Rxa7
{[%clk 0:02:18.4]} 17. Bxg4 {[%clk 0:01:52.2]} 17... g6 {[%clk 0:02:19.3]} 18.
Be2 {[%clk 0:01:50.4]} 18... d5 {[%clk 0:02:13.3]} 19. g4 {[%clk 0:01:46]} 19...
Bh6+ {[%clk 0:02:11]} 20. Kb1 {[%clk 0:01:44.8]} 20... hxg4 {[%clk 0:02:11.7]}
21. Bxg4 {[%clk 0:01:44.7]} 21... Bg7 {[%clk 0:02:12.4]} 22. Rxh8+ {[%clk
0:01:41.9]} 22... Bxh8 {[%clk 0:02:13.3]} 23. exd5 {[%clk 0:01:42.5]} 23... Bxc3
{[%clk 0:02:08.9]} 24. bxc3 {[%clk 0:01:23.1]} 24... Rb7+ {[%clk 0:02:09.2]} 25.
Kc1 {[%clk 0:01:22.8]} 25... cxd5 {[%clk 0:02:10.1]} 26. c4 {[%clk 0:01:18.7]}
26... dxc4 {[%clk 0:02:05]} 27. Be2 {[%clk 0:01:18.1]} 27... Rc7 {[%clk
0:02:01.6]} 28. c3 {[%clk 0:01:10.7]} 28... e5 {[%clk 0:01:56.4]} 29. Rd5 {[%clk
0:01:08.1]} 29... f6 {[%clk 0:01:56.4]} 30. g3 {[%clk 0:00:50.6]} 30... Ke7
{[%clk 0:01:54.6]} 31. f4 {[%clk 0:00:49.7]} 31... exf4 {[%clk 0:01:44.4]} 32.
gxf4 {[%clk 0:00:49.8]} 32... Be6 {[%clk 0:01:44.8]} 33. Ra5 {[%clk 0:00:47.9]}
33... Rc6 {[%clk 0:01:45]} 34. Kd2 {[%clk 0:00:40.8]} 34... Rb6 {[%clk
0:01:42.2]} 35. Ke3 {[%clk 0:00:40]} 35... Bf7 {[%clk 0:01:25.6]} 36. Bf3 {[%clk
0:00:33]} 36... Re6+ {[%clk 0:01:19.8]} 37. Kd4 {[%clk 0:00:31.5]} 37... Rd6+
{[%clk 0:01:20.3]} 38. Ke3 {[%clk 0:00:27.1]} 38... Rd3+ {[%clk 0:01:20.6]} 39.
Kf2 {[%clk 0:00:26.4]} 39... Rxc3 {[%clk 0:01:21]} 40. Rxa6 {[%clk 0:00:27.1]}
40... Rd3 {[%clk 0:01:01.9]} 41. Be2 {[%clk 0:00:23.4]} 41... Rd6 {[%clk
0:00:55.8]} 42. Ra7+ {[%clk 0:00:22.1]} 42... Rd7 {[%clk 0:00:52]} 43. Rxd7+
{[%clk 0:00:21.6]} 43... Kxd7 {[%clk 0:00:52.9]} 44. Ke3 {[%clk 0:00:22.2]}
44... Kc6 {[%clk 0:00:40.4]} 45. Kd4 {[%clk 0:00:22]} 45... Kb5 {[%clk 0:00:41]}
46. a3 {[%clk 0:00:22.1]} 46... Bg8 {[%clk 0:00:34.9]} 47. Bf1 {[%clk
0:00:19.9]} 47... g5 {[%clk 0:00:33.5]} 48. fxg5 {[%clk 0:00:19.9]} 48... fxg5
{[%clk 0:00:34.4]} 49. Be2 {[%clk 0:00:19.8]} 49... Bf7 {[%clk 0:00:33.9]} 50.
Ke5 {[%clk 0:00:19.1]} 50... Kc5 {[%clk 0:00:31.2]} 51. Kf5 {[%clk 0:00:18]}
51... c3 {[%clk 0:00:30.6]} 52. Bd1 {[%clk 0:00:16.6]} 52... Kd4 {[%clk
0:00:22.4]} 53. Kxg5 {[%clk 0:00:14.5]} 53... Kd3 {[%clk 0:00:22.9]} 54. Bg4
{[%clk 0:00:12.9]} 54... Kd2 {[%clk 0:00:20.5]} 55. Bf5 {[%clk 0:00:12.9]} 55...
Bb3 {[%clk 0:00:19.7]} 56. Kf4 {[%clk 0:00:12.4]} 56... Bc2 {[%clk 0:00:20.1]}
57. Be6 {[%clk 0:00:12.7]} 57... Bd3 {[%clk 0:00:19.6]} 58. Bb3 {[%clk
0:00:12.8]} 58... Bc2 {[%clk 0:00:18.5]} 59. Be6 {[%clk 0:00:12.1]} 59... Bd3
{[%clk 0:00:19]} 60. Bb3 {[%clk 0:00:11.9]} 60... Be2 {[%clk 0:00:19.5]} 61. Ke4
{[%clk 0:00:11]} 61... Bd1 {[%clk 0:00:19.9]} 0-1

[Event "*** Titled Tuesday Blitz"]
[Site "Chess.com"]
[Date "2021.02.16"]
[Round "8"]
[White "MrTattaglia"]
[Black "albi1999"]
[Result "1-0"]
[WhiteElo "2757"]
[BlackElo "2600"]
[TimeControl "180+1"]
[EndTime "11:30:41 PST"]
[Termination "MrTattaglia won by resignation"]

1. Nc3 {[%clk 0:03:00.5]} 1... d5 {[%clk 0:02:54.7]} 2. e3 {[%clk 0:03:00.7]}
2... Nf6 {[%clk 0:02:54.3]} 3. d4 {[%clk 0:02:53]} 3... c5 {[%clk 0:02:47.2]} 4.
dxc5 {[%clk 0:02:52.4]} 4... e6 {[%clk 0:02:45.4]} 5. Bd3 {[%clk 0:02:42.3]}
5... Bxc5 {[%clk 0:02:43.5]} 6. Nf3 {[%clk 0:02:37.1]} 6... Nc6 {[%clk
0:02:43.1]} 7. O-O {[%clk 0:02:37.2]} 7... O-O {[%clk 0:02:42]} 8. e4 {[%clk
0:02:37.8]} 8... d4 {[%clk 0:02:27.2]} 9. Ne2 {[%clk 0:02:29.6]} 9... e5 {[%clk
0:02:26.7]} 10. Ng3 {[%clk 0:02:30]} 10... Re8 {[%clk 0:02:23.8]} 11. a3 {[%clk
0:02:20.4]} 11... a6 {[%clk 0:02:14.2]} 12. h3 {[%clk 0:02:19.3]} 12... b5
{[%clk 0:02:11.7]} 13. Bd2 {[%clk 0:02:05.7]} 13... Be6 {[%clk 0:02:09.2]} 14.
Ng5 {[%clk 0:02:03.4]} 14... Bd7 {[%clk 0:02:08]} 15. f4 {[%clk 0:02:02.1]}
15... h6 {[%clk 0:02:01.3]} 16. Nf3 {[%clk 0:01:55.7]} 16... exf4 {[%clk
0:02:01.2]} 17. Bxf4 {[%clk 0:01:56.6]} 17... Be6 {[%clk 0:01:56.8]} 18. Qd2
{[%clk 0:01:55.9]} 18... Ne7 {[%clk 0:01:42.2]} 19. Bxh6 {[%clk 0:01:46.5]}
19... gxh6 {[%clk 0:01:43.1]} 20. Qxh6 {[%clk 0:01:46.5]} 20... Ng6 {[%clk
0:01:42.7]} 21. e5 {[%clk 0:01:44.3]} 21... Bf8 {[%clk 0:01:38.6]} 22. Qd2
{[%clk 0:01:34.6]} 22... Nd5 {[%clk 0:01:33.8]} 23. Nh5 {[%clk 0:01:22.1]} 23...
Bg7 {[%clk 0:01:20.4]} 24. Nxd4 {[%clk 0:01:15.2]} 24... Bxe5 {[%clk 0:01:04.7]}
25. Nf3 {[%clk 0:00:50.6]} 25... Bh8 {[%clk 0:01:04.5]} 26. Ng5 {[%clk
0:00:33.9]} 26... Qb6+ {[%clk 0:00:57.8]} 27. Kh1 {[%clk 0:00:28.7]} 27... Qe3
{[%clk 0:00:57.4]} 28. Qxe3 {[%clk 0:00:28.2]} 28... Nxe3 {[%clk 0:00:57.9]} 29.
Rf2 {[%clk 0:00:28.8]} 29... Rad8 {[%clk 0:00:50.2]} 30. Re1 {[%clk 0:00:28.8]}
30... Nd5 {[%clk 0:00:47.3]} 31. Nxe6 {[%clk 0:00:26.9]} 31... Rd6 {[%clk
0:00:38.7]} 32. Rfe2 {[%clk 0:00:20.5]} 32... Rdxe6 {[%clk 0:00:32.4]} 33. Rxe6
{[%clk 0:00:20.1]} 33... Rxe6 {[%clk 0:00:33.3]} 34. Rxe6 {[%clk 0:00:20.3]}
34... fxe6 {[%clk 0:00:34.2]} 35. Bxg6 {[%clk 0:00:20.9]} 35... Bxb2 {[%clk
0:00:34.9]} 36. g4 {[%clk 0:00:10.9]} 36... Bxa3 {[%clk 0:00:33.1]} 37. Kg2
{[%clk 0:00:10.3]} 37... Bb2 {[%clk 0:00:31.8]} 38. Be8 {[%clk 0:00:09.8]} 38...
Nc7 {[%clk 0:00:29.6]} 39. Bc6 {[%clk 0:00:09.2]} 39... a5 {[%clk 0:00:29.8]}
40. Nf4 {[%clk 0:00:04.8]} 40... Kf7 {[%clk 0:00:29]} 41. Nd3 {[%clk 0:00:02.9]}
41... Bc3 {[%clk 0:00:28.4]} 42. Nc5 {[%clk 0:00:02.2]} 42... a4 {[%clk
0:00:24.2]} 43. Nxa4 {[%clk 0:00:02.5]} 43... bxa4 {[%clk 0:00:25.1]} 44. Bxa4
{[%clk 0:00:03.4]} 44... Kf6 {[%clk 0:00:24.2]} 45. Kf3 {[%clk 0:00:03.8]} 45...
Kg5 {[%clk 0:00:21.3]} 46. Bb3 {[%clk 0:00:02.9]} 46... e5 {[%clk 0:00:21.8]}
47. Ke4 {[%clk 0:00:02.9]} 47... Nb5 {[%clk 0:00:20.2]} 48. Bc4 {[%clk
0:00:02.5]} 48... Na3 {[%clk 0:00:18.2]} 49. Bd3 {[%clk 0:00:02.4]} 49... Kh4
{[%clk 0:00:17.6]} 50. Kf5 {[%clk 0:00:02.6]} 50... Nb1 {[%clk 0:00:08.8]} 51.
g5 {[%clk 0:00:02.6]} 51... Kxh3 {[%clk 0:00:07.5]} 52. Be4 {[%clk 0:00:02]}
52... Nd2 {[%clk 0:00:05.6]} 53. g6 {[%clk 0:00:02.4]} 53... Nxe4 {[%clk
0:00:06]} 54. Kxe4 {[%clk 0:00:03.3]} 1-0

[Event "*** Titled Tuesday Blitz"]
[Site "Chess.com"]
[Date "2021.02.16"]
[Round "8"]
[White "VALPARAISO37"]
[Black "picturesquecheck"]
[Result "0-1"]
[WhiteElo "2451"]
[BlackElo "2261"]
[TimeControl "180+1"]
[EndTime "11:30:43 PST"]
[Termination "picturesquecheck won on time"]

1. d4 {[%clk 0:03:00.9]} 1... Nf6 {[%clk 0:02:58.4]} 2. c4 {[%clk 0:03:00.7]}
2... e6 {[%clk 0:02:35.2]} 3. Nc3 {[%clk 0:02:57.6]} 3... Bb4 {[%clk 0:02:34.9]}
4. a3 {[%clk 0:02:57.2]} 4... Bxc3+ {[%clk 0:02:33.4]} 5. bxc3 {[%clk
0:02:57.1]} 5... O-O {[%clk 0:02:33.9]} 6. e3 {[%clk 0:02:56.7]} 6... d5 {[%clk
0:02:34.1]} 7. Bd3 {[%clk 0:02:56.7]} 7... b6 {[%clk 0:02:20.9]} 8. Ne2 {[%clk
0:02:56.2]} 8... Bb7 {[%clk 0:02:20.3]} 9. f3 {[%clk 0:02:54.9]} 9... Nbd7
{[%clk 0:02:17.9]} 10. O-O {[%clk 0:02:53.9]} 10... c5 {[%clk 0:02:15.2]} 11.
cxd5 {[%clk 0:02:54.2]} 11... exd5 {[%clk 0:02:08.4]} 12. Ng3 {[%clk 0:02:53.8]}
12... Re8 {[%clk 0:02:07.3]} 13. Rb1 {[%clk 0:02:54.4]} 13... g6 {[%clk
0:02:05.2]} 14. Qd2 {[%clk 0:02:49.9]} 14... Rc8 {[%clk 0:02:02.5]} 15. a4
{[%clk 0:02:48.1]} 15... Qc7 {[%clk 0:01:54.4]} 16. Bb2 {[%clk 0:02:47]} 16...
Qd6 {[%clk 0:01:40.2]} 17. Ba3 {[%clk 0:02:44.6]} 17... Qe6 {[%clk 0:01:38.2]}
18. Rbe1 {[%clk 0:02:41.3]} 18... h5 {[%clk 0:01:36.6]} 19. Bb5 {[%clk 0:02:37]}
19... a6 {[%clk 0:01:33.7]} 20. Bd3 {[%clk 0:02:34.1]} 20... h4 {[%clk
0:01:28.6]} 21. Nh1 {[%clk 0:02:34.1]} 21... Qc6 {[%clk 0:01:21.7]} 22. a5
{[%clk 0:02:27.2]} 22... bxa5 {[%clk 0:01:17.6]} 23. Bb2 {[%clk 0:02:23.4]}
23... Rb8 {[%clk 0:01:06.7]} 24. Nf2 {[%clk 0:02:22.6]} 24... Qb6 {[%clk
0:00:56.9]} 25. Rb1 {[%clk 0:02:20.5]} 25... Qe6 {[%clk 0:00:51.5]} 26. Rfe1
{[%clk 0:02:16.3]} 26... Ba8 {[%clk 0:00:38.4]} 27. Ra1 {[%clk 0:02:16.1]} 27...
Qb6 {[%clk 0:00:36.4]} 28. Bc1 {[%clk 0:02:15]} 28... cxd4 {[%clk 0:00:34.1]}
29. cxd4 {[%clk 0:02:12.9]} 29... Qb4 {[%clk 0:00:34]} 30. Qd1 {[%clk
0:02:11.1]} 30... Nb6 {[%clk 0:00:32.7]} 31. Bd2 {[%clk 0:02:10.6]} 31... Qd6
{[%clk 0:00:32]} 32. Bxa5 {[%clk 0:02:10.1]} 32... Rec8 {[%clk 0:00:30]} 33. Bd2
{[%clk 0:02:02.9]} 33... Nc4 {[%clk 0:00:29.6]} 34. Bc1 {[%clk 0:01:58.5]} 34...
a5 {[%clk 0:00:22.6]} 35. Bxc4 {[%clk 0:01:56.1]} 35... dxc4 {[%clk 0:00:20.7]}
36. Rxa5 {[%clk 0:01:56]} 36... c3 {[%clk 0:00:20.9]} 37. Qc2 {[%clk 0:01:53.8]}
37... Qb6 {[%clk 0:00:19.7]} 38. Ra3 {[%clk 0:01:51.3]} 38... Nd5 {[%clk
0:00:19.7]} 39. Ne4 {[%clk 0:01:49.6]} 39... Nb4 {[%clk 0:00:19.5]} 40. Qe2
{[%clk 0:01:48.3]} 40... Bxe4 {[%clk 0:00:19.6]} 41. fxe4 {[%clk 0:01:47.8]}
41... Qb5 {[%clk 0:00:20.5]} 42. Kf2 {[%clk 0:01:42]} 42... Nd3+ {[%clk
0:00:19.8]} 43. Kf3 {[%clk 0:01:40.9]} 43... Nxe1+ {[%clk 0:00:20.7]} 44. Qxe1
{[%clk 0:01:41.1]} 44... Qd3 {[%clk 0:00:20.7]} 45. h3 {[%clk 0:01:35]} 45...
Rb1 {[%clk 0:00:20.6]} 46. d5 {[%clk 0:01:31.2]} 46... Qc2 {[%clk 0:00:20.4]}
47. Rxc3 {[%clk 0:01:28.4]} 47... Qxc3 {[%clk 0:00:19]} 48. Qxh4 {[%clk
0:01:28.7]} 48... Qxc1 {[%clk 0:00:16.9]} 49. Qe7 {[%clk 0:01:27.5]} 49... Qf1+
{[%clk 0:00:17.8]} 50. Kg3 {[%clk 0:01:27.5]} 50... Qe1+ {[%clk 0:00:17.5]} 51.
Kf3 {[%clk 0:01:26.3]} 51... Rb3 {[%clk 0:00:17.2]} 52. Qg5 {[%clk 0:01:19.5]}
52... Rxe3+ {[%clk 0:00:17.6]} 53. Qxe3 {[%clk 0:01:10.9]} 53... Rc3 {[%clk
0:00:17.5]} 54. Qxc3 {[%clk 0:01:11]} 54... Qxc3+ {[%clk 0:00:18.4]} 55. Kf4
{[%clk 0:01:11.6]} 55... Qf6+ {[%clk 0:00:18.2]} 56. Ke3 {[%clk 0:01:09.9]}
56... Kf8 {[%clk 0:00:19.1]} 57. g3 {[%clk 0:01:09]} 57... Qe5 {[%clk
0:00:19.4]} 58. Kf3 {[%clk 0:01:08]} 58... Ke7 {[%clk 0:00:20.3]} 59. h4 {[%clk
0:01:07.6]} 59... Kd6 {[%clk 0:00:21.2]} 60. g4 {[%clk 0:01:07.7]} 60... Kc5
{[%clk 0:00:21.5]} 61. h5 {[%clk 0:01:07.4]} 61... gxh5 {[%clk 0:00:21.5]} 62.
gxh5 {[%clk 0:01:07.7]} 62... Qxh5+ {[%clk 0:00:22.4]} 63. Kf4 {[%clk
0:01:07.6]} 63... Kd6 {[%clk 0:00:22.8]} 64. e5+ {[%clk 0:01:07.7]} 64... Qxe5+
{[%clk 0:00:23.7]} 65. Kg4 {[%clk 0:01:07.7]} 65... Kxd5 {[%clk 0:00:24.5]} 66.
Kf3 {[%clk 0:01:07.5]} 66... f5 {[%clk 0:00:25.4]} 0-1

[Event "*** Titled Tuesday Blitz"]
[Site "Chess.com"]
[Date "2021.02.16"]
[Round "8"]
[White "AryanTari"]
[Black "Sibelephant"]
[Result "0-1"]
[WhiteElo "2904"]
[BlackElo "3027"]
[TimeControl "180+1"]
[EndTime "11:30:45 PST"]
[Termination "Sibelephant won on time"]

1. e4 {[%clk 0:02:57.3]} 1... e5 {[%clk 0:02:59.7]} 2. Nf3 {[%clk 0:02:57.3]}
2... Nc6 {[%clk 0:03:00.1]} 3. Bb5 {[%clk 0:02:56]} 3... a6 {[%clk 0:03:00.4]}
4. Ba4 {[%clk 0:02:56.5]} 4... d6 {[%clk 0:03:00.8]} 5. O-O {[%clk 0:02:53.6]}
5... Bd7 {[%clk 0:02:58.6]} 6. c3 {[%clk 0:02:52]} 6... g6 {[%clk 0:02:56.1]} 7.
d4 {[%clk 0:02:51.7]} 7... Bg7 {[%clk 0:02:56.5]} 8. Re1 {[%clk 0:02:42.9]} 8...
Nf6 {[%clk 0:02:55.4]} 9. h3 {[%clk 0:02:42.8]} 9... O-O {[%clk 0:02:55.3]} 10.
Bc2 {[%clk 0:02:43]} 10... Re8 {[%clk 0:02:54.7]} 11. Nbd2 {[%clk 0:02:41]}
11... Bh6 {[%clk 0:02:55.1]} 12. a3 {[%clk 0:02:32.1]} 12... Qe7 {[%clk
0:02:50.3]} 13. Nf1 {[%clk 0:02:29.8]} 13... Bxc1 {[%clk 0:02:49.5]} 14. Rxc1
{[%clk 0:02:30.7]} 14... Nh5 {[%clk 0:02:46.3]} 15. Ne3 {[%clk 0:02:29.6]} 15...
Qd8 {[%clk 0:02:37.8]} 16. Nd5 {[%clk 0:02:28.4]} 16... Nf6 {[%clk 0:02:23.9]}
17. Qd2 {[%clk 0:02:18.1]} 17... exd4 {[%clk 0:01:50.6]} 18. Qh6 {[%clk
0:02:04.2]} 18... Be6 {[%clk 0:01:40.3]} 19. Nf4 {[%clk 0:01:37.8]} 19... dxc3
{[%clk 0:01:36.4]} 20. bxc3 {[%clk 0:01:38.7]} 20... Qe7 {[%clk 0:01:30.8]} 21.
e5 {[%clk 0:01:27.9]} 21... dxe5 {[%clk 0:01:28.7]} 22. Nxe5 {[%clk 0:01:28.3]}
22... Nxe5 {[%clk 0:00:24.7]} 23. Rxe5 {[%clk 0:01:29.2]} 23... Qd6 {[%clk
0:00:24.9]} 24. Re3 {[%clk 0:00:57.7]} 24... Bc4 {[%clk 0:00:21.4]} 25. Rg3
{[%clk 0:00:40]} 25... Qf8 {[%clk 0:00:20.3]} 26. Qh4 {[%clk 0:00:36.9]} 26...
Ne4 {[%clk 0:00:17.7]} 27. Nxg6 {[%clk 0:00:18.9]} 27... hxg6 {[%clk 0:00:17.4]}
28. Bxe4 {[%clk 0:00:19]} 28... Qe7 {[%clk 0:00:15.8]} 29. Qxe7 {[%clk
0:00:13.5]} 29... Rxe7 {[%clk 0:00:16.4]} 30. Bxb7 {[%clk 0:00:14.2]} 30... Rb8
{[%clk 0:00:17]} 31. Bc6 {[%clk 0:00:09.1]} 31... Rb3 {[%clk 0:00:16.9]} 32. Rg4
{[%clk 0:00:08.7]} 32... Be6 {[%clk 0:00:05.5]} 33. Ra4 {[%clk 0:00:08.7]} 33...
Rb6 {[%clk 0:00:06]} 34. Bf3 {[%clk 0:00:09]} 34... c5 {[%clk 0:00:06.3]} 35.
Ra5 {[%clk 0:00:05]} 35... Rc7 {[%clk 0:00:06.5]} 36. Be2 {[%clk 0:00:04.4]}
36... Bc8 {[%clk 0:00:06.2]} 37. Rd1 {[%clk 0:00:04.5]} 37... Kg7 {[%clk
0:00:05.8]} 38. Bf3 {[%clk 0:00:02.8]} 38... Rb3 {[%clk 0:00:05.2]} 39. Rd3
{[%clk 0:00:02.6]} 39... c4 {[%clk 0:00:05]} 40. Re3 {[%clk 0:00:02.8]} 40...
Rd7 {[%clk 0:00:05.5]} 41. Kh2 {[%clk 0:00:02.9]} 41... Rd3 {[%clk 0:00:05.6]}
42. Rc5 {[%clk 0:00:02.7]} 42... Rxe3 {[%clk 0:00:04.9]} 43. fxe3 {[%clk
0:00:03.3]} 43... Be6 {[%clk 0:00:05.3]} 44. Bd5 {[%clk 0:00:02.2]} 44... Bxd5
{[%clk 0:00:05]} 45. Rxd5 {[%clk 0:00:02.4]} 45... Rxa3 {[%clk 0:00:05.2]} 46.
e4 {[%clk 0:00:01]} 46... Rxc3 {[%clk 0:00:04.9]} 47. Ra5 {[%clk 0:00:01.4]}
47... Re3 {[%clk 0:00:05.2]} 48. Rxa6 {[%clk 0:00:02]} 48... Rxe4 {[%clk
0:00:05.6]} 49. Rc6 {[%clk 0:00:02.7]} 49... Kf8 {[%clk 0:00:04.6]} 50. g4
{[%clk 0:00:03.2]} 50... Ke7 {[%clk 0:00:03.9]} 51. Kg3 {[%clk 0:00:03]} 51...
g5 {[%clk 0:00:03.8]} 52. Kf3 {[%clk 0:00:02.5]} 52... Rf4+ {[%clk 0:00:02.5]}
53. Ke3 {[%clk 0:00:02.2]} 53... Kd7 {[%clk 0:00:03.1]} 54. Rc5 {[%clk
0:00:02.5]} 54... f6 {[%clk 0:00:02.5]} 55. Rd5+ {[%clk 0:00:01.5]} 55... Kc6
{[%clk 0:00:02.6]} 56. Rd8 {[%clk 0:00:01.9]} 56... Kc5 {[%clk 0:00:03.1]} 0-1

[Event "*** Titled Tuesday Blitz"]
[Site "Chess.com"]
[Date "2021.02.16"]
[Round "8"]
[White "ChampStan"]
[Black "temiksmozg"]
[Result "1-0"]
[WhiteElo "2311"]
[BlackElo "2618"]
[TimeControl "180+1"]
[EndTime "11:30:45 PST"]
[Termination "ChampStan won on time"]

1. d4 {[%clk 0:03:00.9]} 1... d5 {[%clk 0:02:59.4]} 2. c4 {[%clk 0:02:59.9]}
2... e6 {[%clk 0:02:58.9]} 3. Nc3 {[%clk 0:02:59.7]} 3... Nf6 {[%clk 0:02:58.3]}
4. cxd5 {[%clk 0:02:59.9]} 4... exd5 {[%clk 0:02:59.2]} 5. Bg5 {[%clk
0:02:59.6]} 5... c6 {[%clk 0:02:58.6]} 6. e3 {[%clk 0:02:59.9]} 6... Be7 {[%clk
0:02:59.1]} 7. Bd3 {[%clk 0:02:59.7]} 7... h6 {[%clk 0:02:59.3]} 8. Bf4 {[%clk
0:02:59.5]} 8... O-O {[%clk 0:02:54.5]} 9. Qc2 {[%clk 0:02:54.9]} 9... c5 {[%clk
0:02:52.3]} 10. Nf3 {[%clk 0:02:40.7]} 10... Nc6 {[%clk 0:02:51]} 11. a3 {[%clk
0:02:25.8]} 11... Bg4 {[%clk 0:01:22.8]} 12. dxc5 {[%clk 0:01:31.4]} 12... Bxf3
{[%clk 0:01:08.3]} 13. gxf3 {[%clk 0:01:31.3]} 13... d4 {[%clk 0:01:08.9]} 14.
Ne4 {[%clk 0:01:31.2]} 14... Nd5 {[%clk 0:01:09.2]} 15. O-O-O {[%clk 0:01:21.2]}
15... Nxf4 {[%clk 0:01:05.9]} 16. exf4 {[%clk 0:01:19.9]} 16... Qc7 {[%clk
0:00:41.3]} 17. Qd2 {[%clk 0:01:00]} 17... f5 {[%clk 0:00:17.5]} 18. Ng3 {[%clk
0:00:46.6]} 18... g6 {[%clk 0:00:17.8]} 19. Kb1 {[%clk 0:00:42.8]} 19... Kh7
{[%clk 0:00:14.2]} 20. h4 {[%clk 0:00:42.4]} 20... h5 {[%clk 0:00:13.4]} 21. Qc2
{[%clk 0:00:38.8]} 21... Qd7 {[%clk 0:00:09.9]} 22. Ne2 {[%clk 0:00:28]} 22...
Bf6 {[%clk 0:00:06.3]} 23. Nc1 {[%clk 0:00:23.9]} 23... Rac8 {[%clk 0:00:04.8]}
24. Nb3 {[%clk 0:00:15.7]} 24... Nd8 {[%clk 0:00:04.8]} 25. Bc4 {[%clk
0:00:13.9]} 25... Kh6 {[%clk 0:00:04.7]} 26. Qd3 {[%clk 0:00:12.9]} 26... b6
{[%clk 0:00:04.6]} 27. Bb5 {[%clk 0:00:11.9]} 27... Qg7 {[%clk 0:00:03.6]} 28.
cxb6 {[%clk 0:00:10.9]} 28... axb6 {[%clk 0:00:04.5]} 29. Rc1 {[%clk 0:00:11.3]}
29... Ne6 {[%clk 0:00:04.5]} 30. Rxc8 {[%clk 0:00:05.7]} 30... Rxc8 {[%clk
0:00:05.4]} 31. Re1 {[%clk 0:00:06]} 31... Nc5 {[%clk 0:00:04.4]} 32. Nxc5
{[%clk 0:00:05.4]} 32... Rxc5 {[%clk 0:00:05.3]} 33. Bc4 {[%clk 0:00:04.9]}
33... Qc7 {[%clk 0:00:04.6]} 34. Bb3 {[%clk 0:00:05.4]} 34... Qxf4 {[%clk
0:00:05]} 35. Re6 {[%clk 0:00:05.2]} 35... Qc1+ {[%clk 0:00:04]} 36. Ka2 {[%clk
0:00:05.6]} 36... Kg7 {[%clk 0:00:04.9]} 37. Qe2 {[%clk 0:00:05.2]} 37... d3
{[%clk 0:00:05]} 38. Re7+ {[%clk 0:00:03.8]} 38... Kh6 {[%clk 0:00:04.4]} 39.
Qe3+ {[%clk 0:00:04.3]} 39... Qxe3 {[%clk 0:00:05]} 40. Rxe3 {[%clk 0:00:04.9]}
40... d2 {[%clk 0:00:04.2]} 41. Rd3 {[%clk 0:00:05.5]} 41... Bxh4 {[%clk
0:00:04.2]} 42. Rxd2 {[%clk 0:00:05.8]} 42... Bg5 {[%clk 0:00:04.7]} 43. f4
{[%clk 0:00:04.5]} 43... Bxf4 {[%clk 0:00:04.4]} 44. Rd3 {[%clk 0:00:05.2]}
44... Rc6 {[%clk 0:00:04.6]} 45. Rf3 {[%clk 0:00:03.9]} 45... Kg5 {[%clk
0:00:03.3]} 46. a4 {[%clk 0:00:03.9]} 46... Rd6 {[%clk 0:00:03.6]} 47. Bc4
{[%clk 0:00:03.7]} 47... Rd2 {[%clk 0:00:03.9]} 48. Ka3 {[%clk 0:00:03.8]} 48...
Bd6+ {[%clk 0:00:03.3]} 49. b4 {[%clk 0:00:03.1]} 49... h4 {[%clk 0:00:00.9]}
50. Kb3 {[%clk 0:00:02.9]} 1-0